{"text_format":"1","workbook":"xlsx","n_sheets":16,"sheets":["RECAP","Paramètres","Tetard FILL ","Tetard GARC ","Caneton FILL","caneton GARC ","benjamin  FILL","benjamin GARC ","MINIMFILL","MINIMGARC","Cadet DFILL","Feuil1","Cadet GARC ","Relais","Cadet DFILL (2)","Cadet GARC  (2)"],"not_rendered":{"charts":0,"images":0,"macros":1,"external_links":0,"defined_names":10,"comments":0,"pivot_tables":0},"unopened":[],"bounds":{"document_bytes":16777216,"sheet_cells":100000,"rows_first":2000,"rows_last":500,"rows_between":2000,"halvings":0,"cell_chars":16384,"cell_head_chars":4096},"cells_cut":0,"cells_raw":0,"read":"whole","date_system":"1900"}

{"sheet":"RECAP","index":0,"n_rows":30,"n_cols":7,"rows_kept":30,"cut":false,"hidden":false,"merged":[[1,0,1,6],[3,0,3,6]]}
["AFFICHAGE AVEC 0  : NE RIEN SAISIR : CALCUL AUTOMATIQUE"]
["RECAPITULATIF CHALLENGE DU PAYS BASQUE"]
[]
[{"$f":"Paramètres!B1","v":"CHALLENGE DU PAYS BASQUE  : SAINT PALAIS LE 02/08/2017"}]
[]
["EPREUVES",{"$f":"Paramètres!C5","v":"BIDACHE"},{"$f":"Paramètres!C6","v":"HASPARREN"},{"$f":"Paramètres!C7","v":"MAULEON"},{"$f":"Paramètres!C8","v":"GARAZI"},{"$f":"Paramètres!C9","v":"ST PALAIS"},{"$f":"Paramètres!C10","v":"Equipe 6"}]
[{"$f":"Paramètres!C20","v":"25 Dos Tétard Filles"},{"$f":"'Tetard FILL '!N7","v":1},{"$f":"'Tetard FILL '!N8","v":3},{"$f":"'Tetard FILL '!N9","v":6},{"$f":"'Tetard FILL '!N10","v":4},{"$f":"'Tetard FILL '!N11","v":2},{"$f":"'Cadet DFILL'!$N12","v":0}]
[{"$f":"Paramètres!C21","v":"25 Dos Tétard Garçons"},{"$f":"'Tetard GARC '!N7","v":1},{"$f":"'Tetard GARC '!N8","v":6},{"$f":"'Tetard GARC '!N9","v":3},{"$f":"'Tetard GARC '!N10","v":4},{"$f":"'Tetard GARC '!N11","v":2},{"$f":"'Cadet GARC '!N12","v":0}]
[{"$f":"Paramètres!C22","v":"50 Pap Caneton Filles"},{"$f":"'Caneton FILL'!N7","v":5},{"$f":"'Caneton FILL'!N8","v":2},{"$f":"'Caneton FILL'!N9","v":1},{"$f":"'Caneton FILL'!N10","v":5},{"$f":"'Caneton FILL'!N11","v":3},{"$f":"'Tetard FILL '!N12","v":0}]
[{"$f":"Paramètres!C23","v":"50 Pap Caneton Garçons"},{"$f":"'caneton GARC '!N7","v":1},{"$f":"'caneton GARC '!N8","v":2},{"$f":"'caneton GARC '!N9","v":3},{"$f":"'caneton GARC '!N10","v":4},{"$f":"'caneton GARC '!N11","v":6},{"$f":"'Tetard GARC '!N12","v":0}]
[{"$f":"Paramètres!C24","v":"50 Dos Benjamins Filles"},{"$f":"'benjamin  FILL'!N7","v":2},{"$f":"'benjamin  FILL'!N8","v":5},{"$f":"'benjamin  FILL'!N9","v":3},{"$f":"'benjamin  FILL'!N10","v":5},{"$f":"'benjamin  FILL'!N11","v":1},{"$f":"'Caneton FILL'!N12","v":0}]
[{"$f":"Paramètres!C25","v":"50 Dos Benjamins Garçons"},{"$f":"'benjamin GARC '!N7","v":1},{"$f":"'benjamin GARC '!N8","v":3},{"$f":"'benjamin GARC '!N9","v":6},2,4,{"$f":"'caneton GARC '!N12","v":0}]
[{"$f":"Paramètres!C26","v":"100 Dos Minimes Filles"},{"$f":"MINIMFILL!N7","v":1},{"$f":"MINIMFILL!N8","v":3},{"$f":"MINIMFILL!N9","v":5},{"$f":"MINIMFILL!N10","v":2},{"$f":"MINIMFILL!N11","v":5},{"$f":"MINIMFILL!N12","v":0}]
[{"$f":"Paramètres!C27","v":"100 Dos Minimes Garçons"},{"$f":"MINIMGARC!N7","v":1},{"$f":"MINIMGARC!N8","v":3},{"$f":"MINIMGARC!N9","v":4},{"$f":"MINIMGARC!N10","v":2},{"$f":"MINIMGARC!N11","v":6},{"$f":"MINIMGARC!N12","v":0}]
[{"$f":"Paramètres!C28","v":"50 Dos Cadet Filles"},{"$f":"'Cadet DFILL'!N7","v":3},{"$f":"'Cadet DFILL'!N8","v":2},{"$f":"'Cadet DFILL'!N9","v":5},{"$f":"'Cadet DFILL'!N10","v":1},{"$f":"'Cadet DFILL'!N11","v":5},{"$f":"Relais!L15","v":0}]
[{"$f":"Paramètres!C29","v":"50 Dos Cadet Garçons"},{"$f":"'Cadet GARC '!N7","v":2},{"$f":"'Cadet GARC '!N8","v":1},{"$f":"'Cadet GARC '!N9","v":6},{"$f":"'Cadet GARC '!N10","v":4},{"$f":"'Cadet GARC '!N11","v":3},{"$f":"Relais!$L29","v":0}]
[{"$f":"Paramètres!C30","v":"Relais 10*25 BRA-NL Tétard/Canetons"},{"$f":"Relais!L10","v":1},{"$f":"Relais!L11","v":4},{"$f":"Relais!L12","v":2},{"$f":"Relais!L13","v":5},{"$f":"Relais!L14","v":3},{"$f":"'benjamin  FILL'!N12","v":0}]
[{"$f":"Paramètres!C31","v":"Relais 8 x 50 BRA-NL Benj/Minimes"},{"$f":"Relais!L24","v":1},{"$f":"Relais!L25","v":2},{"$f":"Relais!L26","v":4},{"$f":"Relais!L27","v":3},{"$f":"Relais!L28","v":5},{"$f":"'benjamin GARC '!N12","v":0}]
[{"$f":"Paramètres!C32","v":"50 Pap Cadet Filles"},{"$f":"'Cadet DFILL (2)'!N7","v":2},{"$f":"'Cadet DFILL (2)'!N8","v":1},{"$f":"'Cadet DFILL (2)'!N9","v":6},{"$f":"'Cadet DFILL (2)'!N10","v":4},{"$f":"'Cadet DFILL (2)'!N11","v":3},{"$f":"Relais!$L43","v":0}]
[{"$f":"Paramètres!C33","v":"50 Pap Cadet Garçons "},{"$f":"'Cadet GARC  (2)'!N7","v":0},{"$f":"'Cadet GARC  (2)'!N8","v":3},{"$f":"'Cadet GARC  (2)'!N9","v":5},{"$f":"'Cadet GARC  (2)'!N10","v":2},{"$f":"'Cadet GARC  (2)'!N11","v":5}]
[{"$f":"Paramètres!C34","v":"Relais 12 * 50 - Nage Libre "},{"$f":"Relais!L38","v":1},{"$f":"Relais!L39","v":5},{"$f":"Relais!L40","v":4},{"$f":"Relais!L41","v":3},{"$f":"Relais!L42","v":2}]
["TOTAL 1ère Journée",21,49,49,47,39]
["TOTAL 2ième Journée",19,52,57,57,52]
["TOTAL 3ième Journée",{"$f":"SUM(B7:B21)","v":23},{"$f":"SUM(C7:C21)","v":45},63,50,55]
["TOTAL 4ième Journée"]
["TOTAL FINAL",{"$f":"SUM(B22:B25)","v":63},146,169,154,146,0]
["CLASSEMENT"]
[]
["Nota : pour le challenge (2ème journée), le resultat de la première journée sera à renseigner manuellement"]
["A SUPP calcul auto pour le TOTAL des journées suivant les journées"]

{"sheet":"Paramètres","index":1,"n_rows":39,"n_cols":3,"rows_kept":39,"cut":false,"hidden":false,"merged":[[0,1,0,6]]}
["Titre","CHALLENGE DU PAYS BASQUE  : SAINT PALAIS LE 02/08/2017"]
[]
[]
[]
["Club",1,"BIDACHE"]
[null,2,"HASPARREN"]
[null,3,"MAULEON"]
[null,4,"GARAZI"]
[null,5,"ST PALAIS"]
[null,6,"Equipe 6"]
[null,7,"Equipe 7"]
[null,8,"Equipe 8"]
[null,9,"Equipe 9"]
[null,10,"Equipe 10"]
[]
[]
["Nombre de points maximum",null,5]
[]
[]
["EPREUVES",1,"25 Dos Tétard Filles"]
[null,2,"25 Dos Tétard Garçons"]
[null,3,"50 Pap Caneton Filles"]
[null,4,"50 Pap Caneton Garçons"]
[null,5,"50 Dos Benjamins Filles"]
[null,6,"50 Dos Benjamins Garçons"]
[null,7,"100 Dos Minimes Filles"]
[null,8,"100 Dos Minimes Garçons"]
[null,9,"50 Dos Cadet Filles"]
[null,10,"50 Dos Cadet Garçons"]
[null,11,"Relais 10*25 BRA-NL Tétard/Canetons"]
[null,12,"Relais 8 x 50 BRA-NL Benj/Minimes"]
[null,13,"50 Pap Cadet Filles"]
[null,14,"50 Pap Cadet Garçons "]
[null,15,"Relais 12 * 50 - Nage Libre "]
[]
[]
["Attention : Ne pas renseigner la cellule 'Commune' pour les Hors Classement"]
[]
["Saisie du temps: Toujours renseigner les minutes même si inférieur à 1 minute. Exemple: 0.45.13"]

{"sheet":"Tetard FILL ","index":2,"n_rows":71,"n_cols":14,"rows_kept":71,"cut":false,"hidden":false,"merged":[[1,0,1,5],[3,0,3,5],[5,1,5,5]]}
[]
["CLASSEMENT  GENERAL"]
[]
[{"$f":"Paramètres!B1","v":"CHALLENGE DU PAYS BASQUE  : SAINT PALAIS LE 02/08/2017"}]
[]
["EPREUVE :    ",{"$f":"Paramètres!C20","v":"25 Dos Tétard Filles"},null,null,null,null,null,null,null,null,"Club","Points","Meilleur 2nd","Total"]
[null,null,null,null,null,null,null,null,null,null,{"$f":"Paramètres!C5","v":"BIDACHE"},1,null,{"$f":"SUM(L7:M7)","v":1}]
["Temps","Noms","Prenoms","Années de","Communes",null,null,null,null,null,{"$f":"Paramètres!C6","v":"HASPARREN"},3,null,{"$f":"SUM(L8:M8)","v":3}]
[null,null,null,"Naissance",null,null,null,null,null,null,{"$f":"Paramètres!C7","v":"MAULEON"},5,1,6]
["m.ss.cc",null,null,null,null,null,null,null,null,null,{"$f":"Paramètres!C8","v":"GARAZI"},4,null,4]
["ne pas utiliser","ne pas utiliser","ne pas utiliser","ne pas utiliser","ne pas utiliser","ne pas utiliser",null,null,null,null,{"$f":"Paramètres!C9","v":"ST PALAIS"},2,null,2]
["0.23.95","CASTEL","Lola",2007,"MAULEON",null,null,null,null,null,{"$f":"Paramètres!C10","v":"Equipe 6"},null,null,0]
["0.24.72","JAUREGUY","Clara",2008,"MAULEON",null,null,null,null,null,{"$f":"Paramètres!C11","v":"Equipe 7"},null,null,0]
["0.26.27","INDO","Idoia",2007,"GARAZI",null,null,null,null,null,{"$f":"Paramètres!C12","v":"Equipe 8"},null,null,0]
["0.26.31","ETCHEBERRY","Elea",2008,"HASPARREN",null,null,null,null,null,{"$f":"Paramètres!C13","v":"Equipe 9"},null,null,0]
["0.26.41","BORDABEHERE","Ines",2007,"ST PALAIS",null,null,null,null,null,{"$f":"Paramètres!C14","v":"Equipe 10"},null,null,0]
["0.26.58","CHAMALBIDE","Anais",2008,"MAULEON"]
["0.26.72","POMMIES","Faustine",2009,"BIDACHE"]
["0.26.81","CAZANAVE","Kattin",2007,"MAULEON"]
["0.27.05","BASSAGAISTEGUY","Anita",2007,"HASPARREN"]
["0.27.22","LARRAMENDY","Dina",2007,"HASPARREN"]
["0.27.40","DOLHEGUY","Alice",2007,"BIDACHE"]
["0.27.56","HEITZ","Ana",2007,"GARAZI"]
["0.27.56","ELKEGARAY","ANITA",2007,"MAULEON"]
["0.28.23","VERDUN","Alaitz",2009,"GARAZI"]
["0.29.50","CAPDEVILLE","Fany",2009,"HASPARREN"]
["0.29.95","LAMARQUE","Milena",2007,"ST PALAIS"]
["0.30.06","ETCHEPAREBORDE","Maia",2008,"ST PALAIS"]
["0.30.15","ETCHEVERRY","LAIDA",2007,"GARAZI"]
["0.31.83","CLAVERIE","Argitxu",2007,"MAULEON"]
["0.31.98","BARBIER","Elina",2009,"GARAZI"]
["0.32.72","LABAT","Helena",2007,"BIDACHE"]
["0.33.06","FOURCADE","Kattin",2007,"ST PALAIS"]
["0.33.29","CAMPANE","SALOME",2007,"MAULEON"]
["0.33.38","KURUTCHARRY","Intza",2008,"GARAZI"]
["0.33.46","ETCHAMENDY","AURELIE",2009,"GARAZI"]
["0.33.56","LARRODE","Alice",2008,"BIDACHE"]
["0.33.78","STEPHEN","Olivia",2008,"MAULEON"]
["0.34.02","IRIART","AURELIE",2008,"MAULEON"]
["0.34.04","LAMOTHE","LOLA",2008,"GARAZI"]
["0.34.31","AMAND","Leylou",2007,"BIDACHE"]
["0.34.33","IBARGARAY","Alice",2007,"GARAZI"]
["0.34.62","GOUNET","Emma",2008,"HASPARREN"]
["0.35.11","BISCAICHIPY","ALAIA",2007,"GARAZI"]
["0.35.28","UNTERREINER","Laina",2007,"GARAZI"]
["0.35.45","DEHMANI","NEILA",2008,"MAULEON"]
["0.37.98","BEGUE-IRIBARNE","Fiona",2007,"GARAZI"]
["0.38.19","ETCHEVERRY","Alaia",2009,"MAULEON"]
["0.41.39","KURUTCHARRY","Haize",2008,"GARAZI"]
["0.42.96","UHALDE","LAIA",2009,"GARAZI"]
["0.44.60","JAURENA","Xana",2010,"HASPARREN"]
["0.46.16","LAHIRIGOYEN","JULIE",2009,"MAULEON"]
["0.51.21","MAYA","ELENA",2009,"GARAZI"]
["0.55.97","BARTHEBORDE-ASLOS","LEANA",2008,"ST PALAIS"]
["0.59.51","BEGUE-IRIBARNE","LOUANNA",2009,"GARAZI"]
[null,"MAURY","Oihana",2008,"BIDACHE"]
[null,"BERGARA","Ania",2007,"HASPARREN"]
[null,"BIDART CRUZ","Amalia",2008,"HASPARREN"]
[null,"BURGUBURU","Lucie",2008,"HASPARREN"]
[null,"ERRECART","Lola",2007,"HASPARREN"]
[null,"ESCUTARY","Dioni",2009,"HASPARREN"]
[null,"ETCHEVERRY-LATAPY","Alaia",2008,"HASPARREN"]
[null,"GUALTER-BENET","Janka",2008,"HASPARREN"]
[null,"IRIGOYEN","Hegoa",2008,"HASPARREN"]
[null,"MORVAN","Hegoa",2009,"HASPARREN"]
[null,"MOUSTIRATS","Aurelie",2007,"HASPARREN"]
[null,"ONDARTS","Eina",2009,"HASPARREN"]
[null,"LAMPELLO","Délia",2007,"HC"]
[null,"ELKEGARAY","Anita",2007,"MAULEON"]
[null,"HIDONDO","Maialen",2007,"MAULEON"]
[null,"ARBURUA","Argitxu",2007,"ST PALAIS"]

{"sheet":"Tetard GARC ","index":3,"n_rows":72,"n_cols":14,"rows_kept":72,"cut":false,"hidden":false,"merged":[[1,0,1,5],[3,0,3,5],[5,1,5,5]]}
[]
["CLASSEMENT  GENERAL"]
[]
[{"$f":"Paramètres!B1","v":"CHALLENGE DU PAYS BASQUE  : SAINT PALAIS LE 02/08/2017"}]
[]
["EPREUVE :    ",{"$f":"Paramètres!C21","v":"25 Dos Tétard Garçons"},null,null,null,null,null,null,null,null,"Club","Points","Meilleur 2nd","Total"]
[null,null,null,null,null,null,null,null,null,null,{"$f":"Paramètres!C5","v":"BIDACHE"},1,null,{"$f":"SUM(L7:M7)","v":1}]
["Temps","Noms","Prenoms","Années de","Communes",null,null,null,null,null,{"$f":"Paramètres!C6","v":"HASPARREN"},5,1,{"$f":"SUM(L8:M8)","v":6}]
[null,null,null,"Naissance",null,null,null,null,null,null,{"$f":"Paramètres!C7","v":"MAULEON"},3,null,3]
["m.ss.cc",null,null,null,null,null,null,null,null,null,{"$f":"Paramètres!C8","v":"GARAZI"},4,null,4]
["ne pas utiliser","ne pas utiliser","ne pas utiliser","ne pas utiliser","ne pas utiliser","ne pas utiliser",null,null,null,null,{"$f":"Paramètres!C9","v":"ST PALAIS"},2,null,2]
["0.22.70","BASTERRA","Alatz",2008,"HASPARREN",null,null,null,null,null,{"$f":"Paramètres!C10","v":"Equipe 6"},null,null,0]
["0.23.81","LARRE","Xan-Eki",2008,"GARAZI",null,null,null,null,null,{"$f":"Paramètres!C11","v":"Equipe 7"},null,null,0]
["0.25.02","PEDOUAN","Paul",2007,"HASPARREN",null,null,null,null,null,{"$f":"Paramètres!C12","v":"Equipe 8"},null,null,0]
["0.25.05","POCHELU","Pako",2008,"GARAZI",null,null,null,null,null,{"$f":"Paramètres!C13","v":"Equipe 9"},null,null,0]
["0.25.09","ARLA","Jean",2007,"MAULEON",null,null,null,null,null,{"$f":"Paramètres!C14","v":"Equipe 10"},null,null,0]
["0.25.46","SALLABERRY","Rémi",2008,"MAULEON"]
["0.25.68","GARAY","Yanis",2007,"ST PALAIS"]
["0.26.15","MOUTROUSTEGUY","ELLANDE",2008,"GARAZI"]
["0.26.37","IRATCABAL","Mael",2009,"MAULEON"]
["0.26.37","LARRORRY","Antton",2008,"MAULEON"]
["0.26.61","CARRICART","Adrien",2007,"MAULEON"]
["0.26.74","HARRIET","Jon",2007,"GARAZI"]
["0.27.16","AGUER","Arnaud",2008,"ST PALAIS"]
["0.27.39","DUFAU","Ellande",2008,"GARAZI"]
["0.27.76","HERRIEST","BETTI",2007,"GARAZI"]
["0.27.82","BIDABE","Mikel",2007,"HASPARREN"]
["0.28.36","OSPITAL","Bastien",2009,"BIDACHE"]
["0.28.82","CURUTCHET-ETCHART","Luka",2008,"HASPARREN"]
["0.29.10","CASTEGE","Xabi",2007,"ST PALAIS"]
["0.29.39","VERGER","Xan",2007,"GARAZI"]
["0.29.70","IRIART IRIGOIN","Aguxtin",2008,"GARAZI"]
["0.30.15","LAFITTE","GEXAN",2007,"HASPARREN"]
["0.30.19","LAPEGUE","Maxime",2008,"BIDACHE"]
["0.30.83","BONETBELCHE","THOMAS",2007,"HASPARREN"]
["0.30.86","UHART","Iban",2007,"GARAZI"]
["0.30.94","ROPTON","Bixente",2008,"HASPARREN"]
["0.30.97","SALLABERRY","OIHAN",2008,"GARAZI"]
["0.31.00","ERNAGA","JON",2007,"GARAZI"]
["0.31.51","MINABERRIGARAY","KEPA",2007,"ST PALAIS"]
["0.31.56","LAULHE","Jules",2008,"ST PALAIS"]
["0.32.56","AUZQUI","Eneko",2007,"ST PALAIS"]
["0.32.61","ARGAIN-OYHAMBURU","Ekhi",2007,"GARAZI"]
["0.33.16","PRAT","Remi",2008,"MAULEON"]
["0.34.46","ETCHEVERRY","Mikel",2007,"HASPARREN"]
["0.34.95","ENTERS","Anthony",2007,"MAULEON"]
["0.35.46","BROS","Ximun",2008,"HASPARREN"]
["0.36.25","GARATEIX","Mattin",2007,"GARAZI"]
["0.36.72","IRALOUR ETCHEVERRY","Kaiet",2009,"GARAZI"]
["0.36.85","CORNAGLIA","Victor",2008,"ST PALAIS"]
["0.38.28","EYHARTS","JULEN",2007,"GARAZI"]
["0.38.79","BATHANY","ENEKO",2010,"ST PALAIS"]
["0.40.91","CHRISTY","Charlie",2008,"MAULEON"]
[null,"JACQUET ","Mathys",2007,"BIDACHE"]
[null,"BARBACE","Eneko",2009,"HASPARREN"]
[null,"DERMIT","Theo",2009,"HASPARREN"]
[null,"ECHEVERTZ","Panpi",2007,"HASPARREN"]
[null,"ESCUTARY","Julen",2007,"HASPARREN"]
[null,"IROLA AMESTOY ","Jokin",2009,"HASPARREN"]
[null,"MARTINON","Estebe",2009,"HASPARREN"]
[null,"MARTINON","Xalbat",2007,"HASPARREN"]
[null,"ORRU","Eneko",2009,"HASPARREN"]
[null,"OXOBY","Arño",2009,"HASPARREN"]
[null,"PAGUEGUY","Unai",2008,"HASPARREN"]
[null,"SAFFORES","Romain",2009,"HASPARREN"]
[null,"TREBUCQ","Esteban",2007,"HASPARREN"]
[null,"BAILE","Dorian",2008,"ST PALAIS"]
[null,"DETCHART","Eneko",2008,"ST PALAIS"]
[null,"MASSOT","Gabin",2009,"ST PALAIS"]
[null,"MERLE","Ethan",2007,"ST PALAIS"]
[null,"SCICRE","Raphael",2008,"ST PALAIS"]
[null,"UHALDE","Imanol",2008,"ST PALAIS"]

{"sheet":"Caneton FILL","index":4,"n_rows":78,"n_cols":14,"rows_kept":78,"cut":false,"hidden":false,"merged":[[1,0,1,5],[3,0,3,5],[5,1,5,5]]}
[]
["CLASSEMENTGENERAL"]
[]
[{"$f":"Paramètres!B1","v":"CHALLENGE DU PAYS BASQUE  : SAINT PALAIS LE 02/08/2017"}]
[]
["EPREUVE :",{"$f":"Paramètres!C22","v":"50 Pap Caneton Filles"},null,null,null,null,null,null,null,null,"Club","Points","Meilleur 2nd","Total"]
[null,null,null,null,null,null,null,null,null,null,{"$f":"Paramètres!C5","v":"BIDACHE"},5,null,{"$f":"SUM(L7:M7)","v":5}]
["Temps","Noms","Prenoms","Années de","Communes",null,null,null,null,null,{"$f":"Paramètres!C6","v":"HASPARREN"},2,null,{"$f":"SUM(L8:M8)","v":2}]
[null,null,null,"Naissance",null,null,null,null,null,null,{"$f":"Paramètres!C7","v":"MAULEON"},1,null,1]
["m.ss.cc",null,null,null,null,null,null,null,null,null,{"$f":"Paramètres!C8","v":"GARAZI"},4,1,5]
["ne pas utiliser","ne pas utiliser","ne pas utiliser","ne pas utiliser","ne pas utiliser","ne pas utiliser",null,null,null,null,{"$f":"Paramètres!C9","v":"ST PALAIS"},3,null,3]
["0.42.08","VIGNEAU","Lucie",2005,"BIDACHE",null,null,null,null,null,{"$f":"Paramètres!C10","v":"Equipe 6"},null,null,0]
["0.43.15","NOBLET-BIDART","Lorena",2006,"GARAZI",null,null,null,null,null,{"$f":"Paramètres!C11","v":"Equipe 7"},null,null,0]
["0.43.80","ALKHAT","Noémie",2005,"ST PALAIS",null,null,null,null,null,{"$f":"Paramètres!C12","v":"Equipe 8"},null,null,0]
["0.43.84","ROPTON","Eve",2005,"HASPARREN",null,null,null,null,null,{"$f":"Paramètres!C13","v":"Equipe 9"},null,null,0]
["0.44.21","IRATÇABAL","Marie",2006,"MAULEON",null,null,null,null,null,{"$f":"Paramètres!C14","v":"Equipe 10"},null,null,0]
["0.44.85","LARRE","Milia",2005,"GARAZI"]
["0.46.88","APESTEGUY","Maia-Jeanne",2006,"ST PALAIS"]
["0.46.89","GARACOTCHE","Carrie",2005,"HASPARREN"]
["0.47.47","MARCOS","Cléo",2005,"HASPARREN"]
["0.47.75","BERHO","Joana",2005,"GARAZI"]
["0.47.94","ETCHEBASTER","Lisa",2005,"HASPARREN"]
["0.48.21","ARHIE","Manon",2005,"ST PALAIS"]
["0.48.62","SALLABERRY","Juliette",2006,"BIDACHE"]
["0.48.97","AROTCARENA","Jone",2006,"GARAZI"]
["0.49.34","CARRICART","Jade",2005,"GARAZI"]
["0.50.54","DUFAU","Leire",2005,"GARAZI"]
["0.50.81","AROTCARENA","Naia",2006,"GARAZI"]
["0.50.82","ETCHEVERRY","Julie",2005,"HASPARREN"]
["0.51.07","LIMOUZIN","Marilou",2005,"MAULEON"]
["0.51.13","CAPDEVILLE","Anna",2006,"HASPARREN"]
["0.52.16","DELPECH","ESTELLE",2005,"GARAZI"]
["0.52.63","CAPA","Léticia",2005,"MAULEON"]
["0.52.97","MOUESCA","Aize",2006,"HASPARREN"]
["0.53.03","CURRUTCHET","Elina",2006,"GARAZI"]
["0.53.16","KURUTCHARRY","Elaia",2006,"GARAZI"]
["0.53.71","DUMERCQ","Celia",2006,"BIDACHE"]
["0.54.15","EYHERABIDE","Maiana",2006,"GARAZI"]
["0.54.36","CASTEGE","Maialen",2005,"ST PALAIS"]
["0.55.15","POCHELU","Ema",2006,"GARAZI"]
["0.55.25","BASSAGAISTEGUY","Jenofa",2005,"HASPARREN"]
["0.56.03","ERRECART","Martta",2005,"HASPARREN"]
["0.56.51","IRUME","Thalia",2006,"ST PALAIS"]
["0.58.41","TARRIDE","Apolline",2006,"ST PALAIS"]
["0.58.57","ASTABIE","Margaux",2006,"ST PALAIS"]
["0.58.96","GOURGUES","Jehanne",2006,"MAULEON"]
["1.00.34","LHOSMOT","ELSA",2006,"GARAZI"]
["1.02.23","AGUERRE LACO","Eulali",2006,"MAULEON"]
["1.02.82","ETCHEGOIN","Naia",2006,"GARAZI"]
["1.03.76","BROS","Lisa",2006,"HASPARREN"]
[null,"ANGUELU","Clemence",2005,"BIDACHE"]
[null,"LARRODE","Marie",2006,"BIDACHE"]
[null,"POMMIES","Ambre",2005,"BIDACHE"]
[null,"ETCHANDY","Xabina",2006,"GARAZI"]
[null,"ETCHECHURY-MARIN","Oihana",2006,"GARAZI"]
[null,"EYHARTZ","Pauline",2006,"GARAZI"]
[null,"INCHAUSPE","Julie",2006,"GARAZI"]
[null,"JAURIBERRY","Lili",2006,"GARAZI"]
[null,"UHART","Laia",2006,"GARAZI"]
[null,"LARRAMENDY","Rita",2005,"HASPARREN"]
[null,"MOUESCA","Argitxu",2005,"HASPARREN"]
[null,"MOUSTIRATS","Laura",2005,"HASPARREN"]
[null,"CAMPELLO","Delia",2007,"HC"]
[null,"MADEN","Violaine",2005,"HC"]
[null,"BOISSINOT","Joana",2006,"MAULEON"]
[null,"CAZANAVE","Oihana",2005,"MAULEON"]
[null,"CLAVERIE","Naia",2005,"MAULEON"]
[null,"COLLIN","Anya",2005,"MAULEON"]
[null,"COLLIN","Tamar",2005,"MAULEON"]
[null,"DINQUE","Camille",2005,"MAULEON"]
[null,"ERBIN","Heloïse",2005,"MAULEON"]
[null,"ARBURUA","Naia",2005,"ST PALAIS"]
[null,"AUZQUI","Eztitxu",2005,"ST PALAIS"]
[null,"ETCHEPAREBORDE","Ana",2006,"ST PALAIS"]
[null,"HIRIBURU","Alaia",2006,"ST PALAIS"]
[null,"LASSALLE","Hannah",2006,"ST PALAIS"]
[null,"RECALDE","Anais",2005,"ST PALAIS"]
[null,"RECALDE","Naia",2006,"ST PALAIS"]

{"sheet":"caneton GARC ","index":5,"n_rows":63,"n_cols":14,"rows_kept":63,"cut":false,"hidden":false,"merged":[[1,0,1,5],[3,0,3,5],[5,1,5,5]]}
[]
["CLASSEMENTGENERAL"]
[]
[{"$f":"Paramètres!B1","v":"CHALLENGE DU PAYS BASQUE  : SAINT PALAIS LE 02/08/2017"}]
[]
["EPREUVE :",{"$f":"Paramètres!C23","v":"50 Pap Caneton Garçons"},null,null,null,null,null,null,null,null,"Club","Points","Meilleur 2nd","Total"]
[null,null,null,null,null,null,null,null,null,null,{"$f":"Paramètres!C5","v":"BIDACHE"},1,null,{"$f":"SUM(L7:M7)","v":1}]
["Temps","Noms","Prenoms","Années de","Communes",null,null,null,null,null,{"$f":"Paramètres!C6","v":"HASPARREN"},2,null,{"$f":"SUM(L8:M8)","v":2}]
[null,null,null,"Naissance",null,null,null,null,null,null,{"$f":"Paramètres!C7","v":"MAULEON"},3,null,3]
["m.ss.cc",null,null,null,null,null,null,null,null,null,{"$f":"Paramètres!C8","v":"GARAZI"},4,null,4]
["ne pas utiliser","ne pas utiliser","ne pas utiliser","ne pas utiliser","ne pas utiliser","ne pas utiliser",null,null,null,null,{"$f":"Paramètres!C9","v":"ST PALAIS"},5,1,6]
["0.38.41","GOYHEIX","Yohan",2005,"ST PALAIS",null,null,null,null,null,{"$f":"Paramètres!C10","v":"Equipe 6"},null,null,0]
["0.43.01","BRISE","Bastien",2005,"ST PALAIS",null,null,null,null,null,{"$f":"Paramètres!C11","v":"Equipe 7"},null,null,0]
["0.45.51","HERRIEST","Gilen",2005,"GARAZI",null,null,null,null,null,{"$f":"Paramètres!C12","v":"Equipe 8"},null,null,0]
["0.45.88","LACO","Bixente",2006,"MAULEON",null,null,null,null,null,{"$f":"Paramètres!C13","v":"Equipe 9"},null,null,0]
["0.46.72","ARGUINDEGUY","Antton",2005,"HASPARREN",null,null,null,null,null,{"$f":"Paramètres!C14","v":"Equipe 10"},null,null,0]
["0.48.50","GRANGE","Antton",2005,"GARAZI"]
["0.49.49","BARBIER","Niko",2006,"GARAZI"]
["0.50.03","LAPEGUE","Remi",2006,"BIDACHE"]
["0.50.78","DAINCIART","Julen",2005,"HASPARREN"]
["0.51.07","ASCARAT","Mikel",2005,"HASPARREN"]
["0.51.14","ELLISSECHE","Louis",2006,"ST PALAIS"]
["0.51.50","NAZABAL","Bixente",2005,"ST PALAIS"]
["0.51.57","CASTILLON","Thomas",2006,"ST PALAIS"]
["0.51.90","DUPLACEAU","PAUL",2005,"GARAZI"]
["0.52.46","LAHIRIGOYEN","Thomas",2005,"MAULEON"]
["0.53.04","CHANGALA","Betti",2005,"GARAZI"]
["0.53.60","AGUER","Julien",2006,"ST PALAIS"]
["0.53.70","IRALOUR ETCHEVERRY","Unai",2006,"GARAZI"]
["0.53.90","HIRIBARNE","Jon",2005,"HASPARREN"]
["0.54.71","SILVA","Mickael",2005,"MAULEON"]
["0.54.96","BORDA","Peio",2006,"MAULEON"]
["0.55.42","GOUNET","Hugo",2005,"HASPARREN"]
["0.55.71","HEITZ","Jon",2005,"GARAZI"]
["0.56.16","STEPHEN","Charlie",2006,"MAULEON"]
["0.56.69","ETCHEVERRY","ANTTON",2005,"GARAZI"]
["0.56.81","BATHANY","Ugo",2006,"GARAZI"]
["1.00.95","AIT SALEH BISCAY","Mehdi",2006,"MAULEON"]
["1.01.11","HIRABOURE","Mikel",2006,"ST PALAIS"]
["1.02.85","BIDART","Inaki",2006,"HASPARREN"]
["1.03.35","BIDEGUINBERRY","Iban",2006,"GARAZI"]
["1.03.76","IRIART-IRIGOIN","Kaiet",2006,"GARAZI"]
["1.04.23","HIRIART","ENEKO",2006,"GARAZI"]
["1.05.33","HOURCADE","Fabien",2005,"ST PALAIS"]
["1.05.77","LARRIEU","Joan",2006,"MAULEON"]
["1.08.03","SABATE","Alexandre",2006,"ST PALAIS"]
["1.10.36","ARHIE","Cédric",2005,"ST PALAIS"]
["1.11.55","GOITY","Daniel",2006,"ST PALAIS"]
[null,"BIDART","Xan",2006,"GARAZI"]
[null,"MAITIA ","Aymerick",2006,"GARAZI"]
[null,"MAYTE","Miguel",2005,"GARAZI"]
[null,"BOUSQUET","Jean",2006,"HASPARREN"]
[null,"FRANCESENA","Mikel",2006,"HASPARREN"]
[null,"GUILLOT","Raphael",2006,"HASPARREN"]
[null,"LACABARATZ","Jon",2005,"HASPARREN"]
[null,"MORVAN","Ellande",2006,"HASPARREN"]
[null,"PAGUEGUY","Luken",2006,"HASPARREN"]
[null,"POISSONNIER","Virgile",2005,"HASPARREN"]
[null,"TREY","Thomas",2006,"HC"]
[null,"ANDOUCHE","Ekaitz",2005,"MAULEON"]
[null,"ERGUY","Txomin",2006,"MAULEON"]
[null,"MASSOT","Antonin",2006,"ST PALAIS"]
[null,"ORTIZ","Julen",2008,"ST PALAIS"]

{"sheet":"benjamin  FILL","index":6,"n_rows":59,"n_cols":14,"rows_kept":59,"cut":false,"hidden":false,"merged":[[1,0,1,5],[3,0,3,5],[5,1,5,5]]}
[]
["CLASSEMENT  GENERAL"]
[]
[{"$f":"Paramètres!B1","v":"CHALLENGE DU PAYS BASQUE  : SAINT PALAIS LE 02/08/2017"}]
[]
["EPREUVE :    ",{"$f":"Paramètres!C24","v":"50 Dos Benjamins Filles"},null,null,null,null,null,null,null,null,"Club","Points","Meilleur 2nd","Total"]
[null,null,null,null,null,null,null,null,null,null,{"$f":"Paramètres!C5","v":"BIDACHE"},2,null,{"$f":"SUM(L7:M7)","v":2}]
["Temps","Noms","Prenoms","Années de","Communes",null,null,null,null,null,{"$f":"Paramètres!C6","v":"HASPARREN"},5,null,{"$f":"SUM(L8:M8)","v":5}]
[null,null,null,"Naissance",null,null,null,null,null,null,{"$f":"Paramètres!C7","v":"MAULEON"},3,null,3]
["m.ss.cc",null,null,null,null,null,null,null,null,null,{"$f":"Paramètres!C8","v":"GARAZI"},4,1,5]
["ne pas utiliser","ne pas utiliser","ne pas utiliser","ne pas utiliser","ne pas utiliser","ne pas utiliser",null,null,null,null,{"$f":"Paramètres!C9","v":"ST PALAIS"},1,null,1]
["0.39.96","LEGLISE","Anais",2003,"HASPARREN",5,null,null,null,null,{"$f":"Paramètres!C10","v":"Equipe 6"},null,null,0]
["0.40.77","LAMOTHE","Litxu",2003,"GARAZI",4,null,null,null,null,{"$f":"Paramètres!C11","v":"Equipe 7"},null,null,0]
["0.42.06","HAZARCA SAPARRAT","Estitxu",2004,"GARAZI",1,null,null,null,null,{"$f":"Paramètres!C12","v":"Equipe 8"},null,null,0]
["0.42.81","BORDA","Anais",2004,"MAULEON",3,null,null,null,null,{"$f":"Paramètres!C13","v":"Equipe 9"},null,null,0]
["0.44.23","DUHALDE","Chloé",2003,"BIDACHE",2,null,null,null,null,{"$f":"Paramètres!C14","v":"Equipe 10"},null,null,0]
["0.44.63","CAPDEVILLE","Manon",2003,"HASPARREN"]
["0.44.67","IRACABAL","MARIE",2006,"MAULEON"]
["0.44.70","TARRIDE","Gabrielle",2004,"ST PALAIS",1]
["0.44.97","BORDENAVE","Maia",2003,"ST PALAIS"]
["0.45.41","KURUTCHARRY","Milena",2003,"GARAZI"]
["0.45.46","JAURENA","Nahia",2004,"HASPARREN"]
["0.45.51","IRIBARREN","Ana",2003,"ST PALAIS"]
["0.45.76","GOUTENEGRE ","Elaia",2004,"HASPARREN"]
["0.45.80","RECALDE","ANAIS",2005,"ST PALAIS"]
["0.46.78","POCHELU","Naia",2004,"GARAZI"]
["0.47.07","IBARGARAY","Amelia",2004,"GARAZI"]
["0.47.13","ETCHEVERRY","Anna",2003,"HASPARREN"]
["0.47.18","SAHORES","Kleina",2004,"GARAZI"]
["0.47.25","BOUILLON","Maria",2004,"MAULEON"]
["0.47.28","DOLHEGUY","Lucie",2003,"BIDACHE"]
["0.47.41","HIRIART URRUTY","Chloé",2004,"HASPARREN"]
["0.48.35","ESQUER","Joana",2003,"MAULEON"]
["0.48.74","LEVERBE","MANON",2004,"MAULEON"]
["0.48.75","BOUILLON","Daniela",2003,"MAULEON"]
["0.49.14","GOYHEIX","Clara",2004,"ST PALAIS"]
["0.49.78","ARLA","Julie",2004,"MAULEON"]
["0.49.96","MAITIA","Elena",2004,"HASPARREN"]
["0.50.26","FOURCADE","Xole",2004,"ST PALAIS"]
["0.50.43","CARRICART","Manon",2004,"MAULEON"]
["0.50.93","IRALOUR","Miren",2004,"GARAZI"]
["0.51.09","ETCHEPAREBORDE","ANNA",2006,"ST PALAIS"]
["0.52.01","DUMERCQ","Wendy",2004,"BIDACHE"]
["0.52.05","BRISE","Lola",2003,"ST PALAIS"]
["0.52.57","VIGNEAU","Nina",2003,"BIDACHE"]
["0.53.80","DUPLACEAU","LOUISE",2003,"GARAZI"]
["0.54.65","BORDAGARAY","LOREILA",2003,"MAULEON"]
["0.55.00","BOUSQUET","Maitena",2003,"HASPARREN"]
["0.59.19","VIGIER","Mathilde",2004,"GARAZI"]
["1.04.55","AUZQUI","ESTITXU",2005,"ST PALAIS"]
[null,"FORDIN","Lea",2004,"BIDACHE"]
[null,"RAGAGNON","Paola",2003,"BIDACHE"]
[null,"DEGOS","Marig",2003,"HASPARREN"]
[null,"ETCHEGOYHEN","Ines",2004,"HASPARREN"]
[null,"HARAMBOURE","Carole",2004,"HASPARREN"]
[null,"EBERHARD","Louna",2004,"HC"]
[null,"MINABERRIGARAY","Alaia",2004,"ST PALAIS"]
[null,"SALLATO","Léa",2004,"ST PALAIS"]
[null,"VIGNAU","Emma",2004,"ST PALAIS"]

{"sheet":"benjamin GARC ","index":7,"n_rows":40,"n_cols":14,"rows_kept":40,"cut":false,"hidden":false,"merged":[[1,0,1,5],[3,0,3,5],[5,1,5,5]]}
[]
["CLASSEMENT  GENERAL"]
[]
[{"$f":"Paramètres!B1","v":"CHALLENGE DU PAYS BASQUE  : SAINT PALAIS LE 02/08/2017"}]
[]
["EPREUVE :    ",{"$f":"Paramètres!C25","v":"50 Dos Benjamins Garçons"},null,null,null,null,null,null,null,null,"Club","Points","Meilleur 2nd","Total"]
[null,null,null,null,null,null,null,null,null,null,{"$f":"Paramètres!C5","v":"BIDACHE"},1,null,{"$f":"SUM(L7:M7)","v":1}]
["Temps","Noms","Prenoms","Années de","Communes",null,null,null,null,null,{"$f":"Paramètres!C6","v":"HASPARREN"},3,null,{"$f":"SUM(L8:M8)","v":3}]
[null,null,null,"Naissance",null,null,null,null,null,null,{"$f":"Paramètres!C7","v":"MAULEON"},5,1,6]
["m.ss.cc",null,null,null,null,null,null,null,null,null,{"$f":"Paramètres!C8","v":"GARAZI"},2,null,2]
["ne pas utiliser","ne pas utiliser","ne pas utiliser","ne pas utiliser","ne pas utiliser","ne pas utiliser",null,null,null,null,{"$f":"Paramètres!C9","v":"ST PALAIS"},4,null,{"$f":"SUM(L11:M11)","v":4}]
["0.36.96","ELISSEIX","Matias",2003,"MAULEON",5,null,null,null,null,{"$f":"Paramètres!C10","v":"Equipe 6"},null,null,0]
["0.38.03","HIRIBURU","Mathieu",2003,"ST PALAIS",4,null,null,null,null,{"$f":"Paramètres!C11","v":"Equipe 7"},null,null,0]
["0.38.98","HIRIBARNE","Peio",2003,"HASPARREN",3,null,null,null,null,{"$f":"Paramètres!C12","v":"Equipe 8"},null,null,0]
["0.39.16","ENTERS","Dorian",2003,"MAULEON",1,null,null,null,null,{"$f":"Paramètres!C13","v":"Equipe 9"},null,null,0]
["0.40.64","INDACOCHEA","PEIO",2004,"MAULEON",null,null,null,null,null,{"$f":"Paramètres!C14","v":"Equipe 10"},null,null,0]
["0.40.73","SIBILLE","Antoine",2004,"MAULEON"]
["0.40.76","BARBIER","Yon",2003,"GARAZI",2]
["0.40.89","PHAGABURU","Unaï",2003,"MAULEON"]
["0.41.93","AZCOITIA","Paul",2003,"GARAZI"]
["0.43.04","BRISE","BASTIEN",2005,"ST PALAIS"]
["0.43.75","CORNAGLIA","Martin",2003,"ST PALAIS"]
["0.43.78","DELPECH","LAURENTZ",2003,"GARAZI"]
["0.44.40","LARRE","Ellande",2004,"HASPARREN"]
["0.45.19","ELLISSECHE","Leo",2003,"ST PALAIS"]
["0.45.56","AMAND","Enzo",2003,"BIDACHE",1]
["0.45.69","LACO","GEXAN",2003,"MAULEON"]
["0.45.98","OSPITAL","Quentin",2004,"BIDACHE"]
["0.46.64","UNTERREINER","Mattin",2004,"GARAZI"]
["0.49.87","ICEAGA","Iban",2004,"ST PALAIS"]
["0.50.02","JIMENEZ","Romain",2003,"HASPARREN"]
["0.51.44","ARAMBIDE","MIGUEL",2004,"GARAZI"]
["0.51.96","BIDART","Paolo",2004,"GARAZI"]
["0.52.39","ETCHEBEST","Matis",2004,"ST PALAIS"]
["0.54.27","AGUER","Benoit",2004,"ST PALAIS"]
["0.55.16","BIDABE","Mattin",2004,"HASPARREN"]
["0.59.96","HARGUINDEGUY","MATHIEU",2003,"ST PALAIS"]
["1.01.80","ETCHELECU","Oihan",2004,"HASPARREN"]
[null,"MARCOS","Xavier",2003,"HASPARREN"]
[null,"CONCHEZ","Baptiste",2004,"HC"]

{"sheet":"MINIMFILL","index":8,"n_rows":44,"n_cols":14,"rows_kept":44,"cut":false,"hidden":false,"merged":[[1,0,1,5],[3,0,3,5],[5,1,5,5]]}
[]
["CLASSEMENT  GENERAL"]
[]
[{"$f":"Paramètres!B1","v":"CHALLENGE DU PAYS BASQUE  : SAINT PALAIS LE 02/08/2017"}]
[]
["EPREUVE :    ",{"$f":"Paramètres!C26","v":"100 Dos Minimes Filles"},null,null,null,null,null,null,null,null,"Club","Points","Meilleur 2nd","Total"]
[null,null,null,null,null,null,null,null,null,null,{"$f":"Paramètres!C5","v":"BIDACHE"},1,null,{"$f":"SUM(L7:M7)","v":1}]
["Temps","Noms","Prenoms","Années de","Communes",null,null,null,null,null,{"$f":"Paramètres!C6","v":"HASPARREN"},3,null,{"$f":"SUM(L8:M8)","v":3}]
[null,null,null,"Naissance",null,null,null,null,null,null,{"$f":"Paramètres!C7","v":"MAULEON"},4,1,5]
["m.ss.cc",null,null,null,null,null,null,null,null,null,{"$f":"Paramètres!C8","v":"GARAZI"},2,null,2]
["ne pas utiliser","ne pas utiliser","ne pas utiliser","ne pas utiliser","ne pas utiliser","ne pas utiliser",null,null,null,null,{"$f":"Paramètres!C9","v":"ST PALAIS"},5,null,5]
["1.15.46","MARQUINE","Camille",2001,"ST PALAIS",5,null,null,null,null,{"$f":"Paramètres!C10","v":"Equipe 6"},null,null,0]
["1.20.46","ETCHETTO","Elise",2001,"MAULEON",4,null,null,null,null,{"$f":"Paramètres!C11","v":"Equipe 7"},null,null,0]
["1.26.24","INDACOCHÉA","Laura",2001,"MAULEON",1,null,null,null,null,{"$f":"Paramètres!C12","v":"Equipe 8"},null,null,0]
["1.29.90","HELOU","Lisa",2001,"HASPARREN",3,null,null,null,null,{"$f":"Paramètres!C13","v":"Equipe 9"},null,null,0]
["1.32.09","ORDUNA","Léa-Marie",2001,"MAULEON",null,null,null,null,null,{"$f":"Paramètres!C14","v":"Equipe 10"},null,null,0]
["1.32.18","VIVIANI","Lise",2001,"GARAZI",2]
["1.32.74","HOURCADE","Yina",2002,"MAULEON"]
["1.34.60","ROBILLARD","Miren",2002,"GARAZI"]
["1.36.30","GARAY","CHLOE",2001,"ST PALAIS"]
["1.36.52","KRATOCHVIL","MILENA",2002,"GARAZI"]
["1.37.07","ALBANDOS","Loélia",2001,"GARAZI"]
["1.38.30","CHAMALBIDE","Emma",2002,"ST PALAIS"]
["1.38.64","OSPITAL","Oihana",2001,"HASPARREN"]
["1.41.77","DUFAU","Lise",2002,"BIDACHE",1]
["1.46.04","SALLENAVE-LENDRE","Lea",2001,"BIDACHE"]
["1.54.31","CARRICART","Lyne",2002,"GARAZI"]
[null,"ARDANS","Leire",2002,"GARAZI"]
[null,"GASTELLOU","Lisa",2002,"GARAZI"]
[null,"HAZARCA SAPARRART","Estitxu",2004,"GARAZI"]
[null,"IRALOUR","Miren",2004,"GARAZI"]
[null,"LAMOTHE","Litxu",2003,"GARAZI"]
[null,"JAURENA","Nahia",2004,"HASPARREN"]
[null,"LEGLISE","Anais",null,"HASPARREN"]
[null,"BORDAGARRAY","Loreila",2003,"MAULEON"]
[null,"BOULLON","Daniela",2003,"MAULEON"]
[null,"ALKHAT","Candice",2001,"ST PALAIS"]
[null,"BORDENAVE","Maia",2003,"ST PALAIS"]
[null,"CLEDON","Emma",2002,"ST PALAIS"]
[null,"IRIBARREN","Anna",null,"ST PALAIS"]
[null,"LAMARQUE","Lisa",2002,"ST PALAIS"]
[null,"LASSALLE","Lucie",2002,"ST PALAIS"]
[null,"VIGNAU","Chloé",2001,"ST PALAIS"]
[null,"GONZALO-BILBO","Julene",2002]

{"sheet":"MINIMGARC","index":9,"n_rows":32,"n_cols":14,"rows_kept":32,"cut":false,"hidden":false,"merged":[[1,0,1,5],[3,0,3,5],[5,1,5,5]]}
[]
["CLASSEMENTGENERAL"]
[]
[{"$f":"Paramètres!B1","v":"CHALLENGE DU PAYS BASQUE  : SAINT PALAIS LE 02/08/2017"}]
[]
["EPREUVE :",{"$f":"Paramètres!C27","v":"100 Dos Minimes Garçons"},null,null,null,null,null,null,null,null,"Club","Points","Meilleur 2nd","Total"]
[null,null,null,null,null,null,null,null,null,null,{"$f":"Paramètres!C5","v":"BIDACHE"},1,null,{"$f":"SUM(L7:M7)","v":1}]
["Temps","Noms","Prenoms","Années de","Communes",null,null,null,null,null,{"$f":"Paramètres!C6","v":"HASPARREN"},3,null,{"$f":"SUM(L8:M8)","v":3}]
[null,null,null,"Naissance",null,null,null,null,null,null,{"$f":"Paramètres!C7","v":"MAULEON"},4,null,4]
["m.ss.cc",null,null,null,null,null,null,null,null,null,{"$f":"Paramètres!C8","v":"GARAZI"},2,null,2]
["ne pas utiliser","ne pas utiliser","ne pas utiliser","ne pas utiliser","ne pas utiliser","ne pas utiliser",null,null,null,null,{"$f":"Paramètres!C9","v":"ST PALAIS"},5,1,6]
["1.16.20","GARAY","ROMAIN",2002,"ST PALAIS",5,null,null,null,null,{"$f":"Paramètres!C10","v":"Equipe 6"},null,null,0]
["1.20.99","COLAS","Martin",2001,"MAULEON",4,null,null,null,null,{"$f":"Paramètres!C11","v":"Equipe 7"},null,null,0]
["1.22.80","MAURICE","Grégoire",2002,"ST PALAIS",1,null,null,null,null,{"$f":"Paramètres!C12","v":"Equipe 8"},null,null,0]
["1.23.90","MACHICOTE","Yohan",2001,"HASPARREN",3,null,null,null,null,{"$f":"Paramètres!C13","v":"Equipe 9"},null,null,0]
["1.24.58","MANCICIDOR","Jolan",2002,"HASPARREN",null,null,null,null,null,{"$f":"Paramètres!C14","v":"Equipe 10"},null,null,0]
["1.25.61","BARBIER","Damien",2001,"GARAZI",2]
["1.26.30","ETCHEGARAY","Arno",2002,"ST PALAIS"]
["1.27.70","DUFAU","Thomas",2002,"BIDACHE",1]
["1.28.16","INDACOCHEA","PEIO",2004,"MAULEON"]
["1.30.30","BARBIER","Yon",2003,"GARAZI"]
["1.30.48","AROTCARENA-ROSAS","Julen",2002,"GARAZI"]
["1.31.27","HAZARCA-SAPARRART","Imanol",2001,"GARAZI"]
["1.33.27","MOUESCA","Eneko",2002,"HASPARREN"]
["1.51.86","BELLOCQ","Eric",2001,"HASPARREN"]
["1.57.60","WARNERY","Yann",2002,"GARAZI"]
["1.58.74","EBERHARD","Bastien",2001,"HASPARREN"]
["2.05.19","WARNERY","Stéphane",2002,"GARAZI"]
[null,"AZCOITIA","Paul",2003,"GARAZI"]
[null,"LARRALDE","Eiande",2001,"GARAZI"]
[null,"DAINCIART","Iban",2002,"HASPARREN"]
[null,"ELISSECHE","Leo",2003,"ST PALAIS"]

{"sheet":"Cadet DFILL","index":10,"n_rows":40,"n_cols":14,"rows_kept":40,"cut":false,"hidden":false,"merged":[[1,0,1,5],[3,0,3,5],[5,1,5,5]]}
[]
["CLASSEMENTGENERAL"]
[]
[{"$f":"Paramètres!B1","v":"CHALLENGE DU PAYS BASQUE  : SAINT PALAIS LE 02/08/2017"}]
[]
["EPREUVE :",{"$f":"Paramètres!C28","v":"50 Dos Cadet Filles"},null,null,null,null,null,null,null,null,"Club","Points","Meilleur 2nd","Total"]
[null,null,null,null,null,null,null,null,null,null,{"$f":"Paramètres!C5","v":"BIDACHE"},3,null,{"$f":"SUM(L7:M7)","v":3}]
["Temps","Noms","Prenoms","Années de","Communes",null,null,null,null,null,{"$f":"Paramètres!C6","v":"HASPARREN"},2,null,{"$f":"SUM(L8:M8)","v":2}]
[null,null,null,"Naissance",null,null,null,null,null,null,{"$f":"Paramètres!C7","v":"MAULEON"},4,1,5]
["m.ss.cc",null,null,null,null,null,null,null,null,null,{"$f":"Paramètres!C8","v":"GARAZI"},1,null,1]
["ne pas utiliser","ne pas utiliser","ne pas utiliser","ne pas utiliser","ne pas utiliser","ne pas utiliser",null,null,null,null,{"$f":"Paramètres!C9","v":"ST PALAIS"},5,null,5]
["0.34.74","MARQUINE","Camille",2001,"ST PALAIS",5,null,null,null,null,{"$f":"Paramètres!C10","v":"Equipe 6"}]
["0.35.25","LAJEUNESSE","Lisa",2000,"MAULEON",4,null,null,null,null,{"$f":"Paramètres!C11","v":"Equipe 7"},null,null,{"$f":"SUM(L13:M13)","v":0}]
["0.36.53","FARFARO","Margot",1999,"BIDACHE",3,null,null,null,null,{"$f":"Paramètres!C12","v":"Equipe 8"},null,null,0]
["0.38.31","LAJEUNESSE","Aline",2000,"MAULEON",1,null,null,null,null,{"$f":"Paramètres!C13","v":"Equipe 9"},null,null,0]
["0.40.04","BORDENAVE","Miren",2000,"ST PALAIS",null,null,null,null,null,{"$f":"Paramètres!C14","v":"Equipe 10"},null,null,0]
["0.40.14","CAPDEVILLE","Oihana",2000,"HASPARREN",2]
["0.42.05","VIVIANI","Lise",2001,"GARAZI"]
["0.42.68","ROBILLARD","Miren",2002,"GARAZI"]
["0.43.09","GARAY","CHLOE",2001,"ST PALAIS"]
["0.43.21","HELOU","Lisa",2001,"HASPARREN"]
["0.50.33","SALLABERRY","Elise",2000,"BIDACHE",1]
["0.54.77","BLANDO","Marie",2000,"ST PALAIS"]
[null,"DUFAU","Lise",2002,"BIDACHE"]
[null,"SALLENAVE-LENDRE","Léa",2001,"BIDACHE"]
[null,"ALBANDOS","Loélia",2001,"GARAZI"]
[null,"ARDANS","Leire",2002,"GARAZI"]
[null,"CARRICART","Lyne",2002,"GARAZI"]
[null,"GASTELLOU","Lisa",2002,"GARAZI"]
[null,"ROBILLARD","Kattin",1999,"GARAZI"]
[null,"ETCHEBERRY","Emma",1999,"HASPARREN"]
[null,"TREY","Marion",2000,"HC"]
[null,"HOURCADE","Yina",2002,"MAULEON"]
[null,"INDACOCHEA","Laura",2001,"MAULEON"]
[null,"LACO AGUERRE","Ainara",2001,"MAULEON"]
[null,"ORDUNA ","Léa-Marie",2001,"MAULEON"]
[null,"CLEDON","Mathilde",2000,"ST PALAIS"]
[null,"DARGELOS","Juliette",1999,"ST PALAIS"]
[null,"LASSALLE","Lucie",2002,"ST PALAIS"]
[null,"GONZALO-BILBO","Julene",2002]

{"sheet":"Feuil1","index":11,"n_rows":0,"n_cols":0,"rows_kept":0,"cut":false,"hidden":false,"merged":[]}

{"sheet":"Cadet GARC ","index":12,"n_rows":36,"n_cols":14,"rows_kept":36,"cut":false,"hidden":false,"merged":[[1,0,1,5],[3,0,3,5],[5,1,5,5]]}
[]
["CLASSEMENTGENERAL"]
[]
[{"$f":"Paramètres!B1","v":"CHALLENGE DU PAYS BASQUE  : SAINT PALAIS LE 02/08/2017"}]
[]
["EPREUVE :",{"$f":"Paramètres!C29","v":"50 Dos Cadet Garçons"},null,null,null,null,null,null,null,null,"Club","Points","Meilleur 2nd","Total"]
[null,null,null,null,null,null,null,null,null,null,{"$f":"Paramètres!C5","v":"BIDACHE"},2,null,{"$f":"SUM(L7:M7)","v":2}]
["Temps","Noms","Prenoms","Années de","Communes",null,null,null,null,null,{"$f":"Paramètres!C6","v":"HASPARREN"},1,null,{"$f":"SUM(L8:M8)","v":1}]
[null,null,null,"naissance",null,null,null,null,null,null,{"$f":"Paramètres!C7","v":"MAULEON"},5,1,6]
["m.ss.cc",null,null,null,null,null,null,null,null,null,{"$f":"Paramètres!C8","v":"GARAZI"},4,null,4]
["ne pas utiliser","ne pas utiliser","ne pas utiliser","ne pas utiliser","ne pas utiliser","ne pas utiliser",null,null,null,null,{"$f":"Paramètres!C9","v":"ST PALAIS"},3,null,3]
["0.36.82","ELISSEIX","Johan",2000,"MAULEON",5,null,null,null,null,{"$f":"Paramètres!C10","v":"Equipe 6"},null,null,0]
["0.37.50","ELISSEIX","Matias",2003,"MAULEON",1,null,null,null,null,{"$f":"Paramètres!C11","v":"Equipe 7"},null,null,0]
["0.38.15","BARBIER","Damien",2001,"GARAZI",4,null,null,null,null,{"$f":"Paramètres!C12","v":"Equipe 8"},null,null,0]
["0.38.17","MAURICE","Grégoire",2002,"ST PALAIS",3,null,null,null,null,{"$f":"Paramètres!C13","v":"Equipe 9"},null,null,0]
["0.38.25","ARDANS","Unaï",2000,"GARAZI",null,null,null,null,null,{"$f":"Paramètres!C14","v":"Equipe 10"},null,null,0]
["0.38.64","DUFAU","Thomas",2002,"BIDACHE",2]
["0.38.77","MACHICOTE","Yohan",2001,"HASPARREN",1]
["0.39.72","HAZARCA SAPARRART","Imanol",2001,"GARAZI"]
["0.43.56","DAINCIART","Iban",2002,"HASPARREN"]
["0.43.59","BORDAGARRAY","Lorentxo",2000,"MAULEON"]
[null,"AROTCARENA","Julen",2002,"GARAZI"]
[null,"LARRALDE","Eiande",2001,"GARAZI"]
[null,"PAGOLA ELIZONDO","Ellande",2000,"GARAZI"]
[null,"WARNERY","Stéphane",2002,"GARAZI"]
[null,"WARNERY","Yann",2002,"GARAZI"]
[null,"EBERHARD","Bastien",2001,"HASPARREN"]
[null,"MANCICIDOR","Jolan",2002,"HASPARREN"]
[null,"MOUESCA","Eneko",2002,"HASPARREN"]
[null,{"$f":"'Cadet GARC '!L7:M11='Cadet GARC '!L7:M11","v":{"$error":"#VALUE!"}},"Martin",2001,"MAULEON"]
[null,"CONCHEZ","Baptiste",2004,"MAULEON"]
[null,"INDACOCHEA","Peio",2004,"MAULEON"]
[null,"LACO","Gexan",2003,"MAULEON"]
[null,"PHAGABURU","Unai",2003,"MAULEON"]
[null,"GARAY","Romain",2002,"ST PALAIS"]
[null,"HIRIBURU","Mathieu",2003,"ST PALAIS"]

{"sheet":"Relais","index":13,"n_rows":44,"n_cols":12,"rows_kept":44,"cut":false,"hidden":false,"merged":[[29,0,29,1],[29,3,29,4],[43,3,43,4],[43,0,43,1],[16,3,16,4],[37,3,37,4],[42,0,42,1],[42,3,42,4],[40,0,40,1],[40,3,40,4],[41,0,41,1],[41,3,41,4],[22,3,22,4],[26,3,26,4],[27,0,27,1],[27,3,27,4],[28,0,28,1],[28,3,28,4],[25,0,25,1],[25,3,25,4],[26,0,26,1],[38,0,38,1],[38,3,38,4],[39,0,39,1],[39,3,39,4],[34,1,34,5],[36,0,36,1],[36,3,36,4],[37,0,37,1],[0,0,0,5],[2,0,2,5],[6,1,6,5],[8,0,8,1],[8,3,8,4],[9,0,9,1],[9,3,9,4],[11,0,11,1],[11,3,11,4],[14,0,14,1],[14,3,14,4],[12,0,12,1],[12,3,12,4],[13,0,13,1],[13,3,13,4],[10,0,10,1],[10,3,10,4],[24,0,24,1],[24,3,24,4],[23,0,23,1],[23,3,23,4],[15,0,15,1],[22,0,22,1],[15,3,15,4],[16,0,16,1],[20,1,20,5]]}
["CHALLENGE DU PAYS BASQUE :"]
[]
[{"$f":"Paramètres!B1","v":"CHALLENGE DU PAYS BASQUE  : SAINT PALAIS LE 02/08/2017"}]
[]
["A SAISIR : PAS DE CALCUL AUTOMATIQUE",null,null,null,null,null,null,null,null,null,"A SAISIR : PAS DE CALCUL AUTOMATIQUE"]
[null,null,null,null,null,null,null,null,null,null,"A saisir pour remonter des points dans le fichier RECAP"]
["EPREUVE :    ",{"$f":"Paramètres!C30","v":"Relais 10*25 BRA-NL Tétard/Canetons"}]
[]
["CLASSEMENT",null,"TEMPS","CLUB",null,"POINTS",null,null,null,null,"Club","Points"]
[1,null,"3.29.48","GARAZI",null,5,null,null,null,null,{"$f":"Paramètres!C5","v":"BIDACHE"},1]
[2,null,"3.37.83","HASPARREN",null,4,null,null,null,null,{"$f":"Paramètres!C6","v":"HASPARREN"},4]
[3,null,"3.38.02","ST PALAIS",null,3,null,null,null,null,{"$f":"Paramètres!C7","v":"MAULEON"},2]
[4,null,"3.38.51","MAULEON",null,2,null,null,null,null,{"$f":"Paramètres!C8","v":"GARAZI"},5]
[5,null,"4.15.89","BIDACHE",null,1,null,null,null,null,{"$f":"Paramètres!C9","v":"ST PALAIS"},3]
[6,null,null,null,null,null,null,null,null,null,{"$f":"Paramètres!C10","v":"Equipe 6"}]
[7]
[8]
[]
[]
[]
["EPREUVE :    ",{"$f":"Paramètres!C31","v":"Relais 8 x 50 BRA-NL Benj/Minimes"}]
[]
["CLASSEMENT",null,"TEMPS","CLUB",null,"POINTS",null,null,null,null,"Club","Points"]
[1,null,"4.38.38","ST PALAIS",null,5,null,null,null,null,{"$f":"Paramètres!C5","v":"BIDACHE"},1]
[2,null,"4.48.76","MAULEON",null,4,null,null,null,null,{"$f":"Paramètres!C6","v":"HASPARREN"},2]
[3,null,"4.48.83","GARAZI",null,3,null,null,null,null,{"$f":"Paramètres!C7","v":"MAULEON"},4]
[4,null,"4.55.14","HASPARREN",null,2,null,null,null,null,{"$f":"Paramètres!C8","v":"GARAZI"},3]
[5,null,"5.37.61","BIDACHE",null,1,null,null,null,null,{"$f":"Paramètres!C9","v":"ST PALAIS"},5]
[6,null,null,null,null,null,null,null,null,null,{"$f":"Paramètres!C10","v":"Equipe 6"}]
[7]
[]
[]
[]
[]
["EPREUVE :    ",{"$f":"Paramètres!C34","v":"Relais 12 * 50 - Nage Libre "}]
[]
["CLASSEMENT",null,"TEMPS","CLUB",null,"POINTS",null,null,null,null,"Club","Points"]
[1,null,"6.54.84","HASPARREN",null,5,null,null,null,null,{"$f":"Paramètres!C5","v":"BIDACHE"},1]
[2,null,"6.57.58","MAULEON",null,4,null,null,null,null,{"$f":"Paramètres!C6","v":"HASPARREN"},5]
[3,null,"7.00.76","GARAZI",null,3,null,null,null,null,{"$f":"Paramètres!C7","v":"MAULEON"},4]
[4,null,"7.19.40","ST PALAIS",null,2,null,null,null,null,{"$f":"Paramètres!C8","v":"GARAZI"},3]
[5,null,"8.03.02","BIDACHE",null,1,null,null,null,null,{"$f":"Paramètres!C9","v":"ST PALAIS"},2]
[6,null,null,null,null,null,null,null,null,null,{"$f":"Paramètres!C10","v":"Equipe 6"}]
[7]

{"sheet":"Cadet DFILL (2)","index":14,"n_rows":39,"n_cols":14,"rows_kept":39,"cut":false,"hidden":false,"merged":[[1,0,1,5],[3,0,3,5],[5,1,5,5]]}
[]
["CLASSEMENTGENERAL"]
[]
[{"$f":"Paramètres!B1","v":"CHALLENGE DU PAYS BASQUE  : SAINT PALAIS LE 02/08/2017"}]
[]
["EPREUVE :",{"$f":"Paramètres!C32","v":"50 Pap Cadet Filles"},null,null,null,null,null,null,null,null,"Club","Points","Meilleur 2nd","Total"]
[null,null,null,null,null,null,null,null,null,null,{"$f":"Paramètres!C5","v":"BIDACHE"},2,null,{"$f":"SUM(L7:M7)","v":2}]
["Temps","Noms","Prenoms","Années de","Communes",null,null,null,null,null,{"$f":"Paramètres!C6","v":"HASPARREN"},1,null,{"$f":"SUM(L8:M8)","v":1}]
[null,null,null,"Naissance",null,null,null,null,null,null,{"$f":"Paramètres!C7","v":"MAULEON"},5,1,6]
["m.ss.cc",null,null,null,null,null,null,null,null,null,{"$f":"Paramètres!C8","v":"GARAZI"},4,null,4]
["ne pas utiliser","ne pas utiliser","ne pas utiliser","ne pas utiliser","ne pas utiliser","ne pas utiliser",null,null,null,null,{"$f":"Paramètres!C9","v":"ST PALAIS"},3,null,3]
["0.33.92","LAJEUNESSE","Lisa",2000,"MAULEON",5,null,null,null,null,{"$f":"Paramètres!C10","v":"Equipe 6"}]
["0.34.05","LAJEUNESSE","Aline",2000,"MAULEON",1,null,null,null,null,{"$f":"Paramètres!C11","v":"Equipe 7"},null,null,{"$f":"SUM(L13:M13)","v":0}]
["0.34.94","LAMOTHE","LITXU",2003,"GARAZI",4,null,null,null,null,{"$f":"Paramètres!C12","v":"Equipe 8"},null,null,0]
["0.35.40","HOURCADE","Yina",2002,"MAULEON",null,null,null,null,null,{"$f":"Paramètres!C13","v":"Equipe 9"},null,null,0]
["0.35.64","LASSALLE","Lucie",2002,"ST PALAIS",3,null,null,null,null,{"$f":"Paramètres!C14","v":"Equipe 10"},null,null,0]
["0.38.98","GASTELLOU","Lisa",2002,"GARAZI"]
["0.39.96","GOYHEIX","CLARA",2004,"ST PALAIS"]
["0.39.98","FARFARO","Margot",1999,"BIDACHE",2]
["0.40.02","CAPDEVILLE","Oihana",2000,"HASPARREN",1]
["0.40.56","KRATOCHVIL","MILENA",2002,"GARAZI"]
["0.41.23","SAHORES","KLEINA",2004,"GARAZI"]
["0.41.95","KURUTCHARRY","MILENA",2003,"GARAZI"]
["0.43.31","IRIBARREN","ANNA",2003,"ST PALAIS"]
["0.43.43","SALLABERRY","Elise",2000,"BIDACHE"]
["0.45.70","ALBANDOS","Loélia",2001,"GARAZI"]
["0.47.77","IBARGARAY","AMELIA",2004,"GARAZI"]
["0.49.03","BLANDO","Marie",2000,"ST PALAIS"]
[null,"ARDANS","Leire",2002,"GARAZI"]
[null,"CARRICART","Lyne",2002,"GARAZI"]
[null,"POCHELU","NAIA",2004,"GARAZI"]
[null,"ROBILLARD","Kattin",1999,"GARAZI"]
[null,"ROBILLARD","Miren",2002,"GARAZI"]
[null,"VIVIANI","Lise",2001,"GARAZI"]
[null,"BORDENAVE","Miren",2000,"ST PALAIS"]
[null,"CHAMALBIDE","Ema",2002,"ST PALAIS"]
[null,"CLEDON","EMMA",2002,"ST PALAIS"]
[null,"DARGELOS","Juliette",1999,"ST PALAIS"]
[null,"GARACOTCHE","Tabata",2002]

{"sheet":"Cadet GARC  (2)","index":15,"n_rows":35,"n_cols":14,"rows_kept":35,"cut":false,"hidden":false,"merged":[[1,0,1,5],[3,0,3,5],[5,1,5,5]]}
[]
["CLASSEMENTGENERAL"]
[]
[{"$f":"Paramètres!B1","v":"CHALLENGE DU PAYS BASQUE  : SAINT PALAIS LE 02/08/2017"}]
[]
["EPREUVE :",{"$f":"Paramètres!C33","v":"50 Pap Cadet Garçons "},null,null,null,null,null,null,null,null,"Club","Points","Meilleur 2nd","Total"]
[null,null,null,null,null,null,null,null,null,null,{"$f":"Paramètres!C5","v":"BIDACHE"},null,null,{"$f":"SUM(L7:M7)","v":0}]
["Temps","Noms","Prenoms","Années de","Communes",null,null,null,null,null,{"$f":"Paramètres!C6","v":"HASPARREN"},3,null,{"$f":"SUM(L8:M8)","v":3}]
[null,null,null,"naissance",null,null,null,null,null,null,{"$f":"Paramètres!C7","v":"MAULEON"},4,1,5]
["m.ss.cc",null,null,null,null,null,null,null,null,null,{"$f":"Paramètres!C8","v":"GARAZI"},2,null,2]
["ne pas utiliser","ne pas utiliser","ne pas utiliser","ne pas utiliser","ne pas utiliser","ne pas utiliser",null,null,null,null,{"$f":"Paramètres!C9","v":"ST PALAIS"},5,null,5]
["0.29.71","GARAY","ROMAIN",2002,"ST PALAIS",5,null,null,null,null,{"$f":"Paramètres!C10","v":"Equipe 6"},null,null,0]
["0.31.64","COLAS","Martin",2001,"MAULEON",4,null,null,null,null,{"$f":"Paramètres!C11","v":"Equipe 7"},null,null,0]
["0.33.61","ELISSEIX","Johan",2000,"MAULEON",1,null,null,null,null,{"$f":"Paramètres!C12","v":"Equipe 8"},null,null,0]
["0.34.09","MOUESCA","Eneko",2002,"HASPARREN",3,null,null,null,null,{"$f":"Paramètres!C13","v":"Equipe 9"},null,null,0]
["0.34.09","ENTERS","DORIAN",2003,"MAULEON",null,null,null,null,null,{"$f":"Paramètres!C14","v":"Equipe 10"},null,null,0]
["0.35.34","MANCICIDOR","JOLAN",2002,"HASPARREN"]
["0.35.67","DAINCIART","Iban",2002,"HASPARREN"]
["0.35.83","ARDANS","Unaï",2000,"GARAZI",2]
["0.37.01","ELLISECHE","LEO",2003,"ST PALAIS"]
["0.39.40","BORDAGARAY","LORENTXO",2000,"MAULEON"]
["0.40.34","AROTCARENA","Julen",2002,"GARAZI"]
["1.11.77","EBERHARD","BASTIEN",null,"HASPARREN"]
[null,"BARBIER","Damien",2001,"GARAZI"]
[null,"HAZARCA SAPARRART","Imanol",2001,"GARAZI"]
[null,"LARRALDE","Eiande",2001,"GARAZI"]
[null,"PAGOLA ELIZONDO","Ellande",2000,"GARAZI"]
[null,"WARNERY","Stéphane",2002,"GARAZI"]
[null,"WARNERY","Yann",2002,"GARAZI"]
[null,"CONCHEZ","Baptiste",2004,"MAULEON"]
[null,"ELISSEIX","Matias",2003,"MAULEON"]
[null,"INDACOCHEA","Peio",2004,"MAULEON"]
[null,"LACO","Gexan",2003,"MAULEON"]
[null,"PHAGABURU","Unai",2003,"MAULEON"]
[null,"MAURICE","Grégoire",2002,"ST PALAIS"]